[Event "Julius Baer Generation Cup Prelims 2022"]
[Site "Online"]
[Date "2022.09.14"]
[Round "8.6"]
[White "Ivanchuk, Vasyl"]
[Black "Keymer, Vincent"]
[Result "1-0"]
[ECO "E46"]
[WhiteElo "2678"]
[BlackElo "2693"]
[Annotator "TA"]
[PlyCount "161"]
[EventDate "2022.09.12"]
[EventType "tourn"]
[EventCountry "NET"]
[SourceTitle "playchess.com"]
[Source "ChessBase"]
[SourceQuality "1"]
[TimeControl "900+10"]

{[%evp 13,161,-7,0,0,0,0,0,0,0,0,4,11,23,5,11,-29,-11,-14,-20,-15,-25,-18,-1,-50,-43,-85,-69,-78,-77,-112,-103,-100,-62,-106,-21,-51,-33,-24,-26,-104,-104,-104,-100,-102,-90,-96,-98,-91,-100,-209,-186,-185,-179,-185,-143,-191,-173,-187,0,-33,-32,-40,0,0,0,0,27,26,31,4,2,0,14,0,0,0,0,0,0,0,0,0,0,0,0,0,0,0,0,0,0,0,0,0,1452,1519,800,466,793,284,278,156,171,-3,-4,-6,0,0,0,0,0,0,52,52,53,72,1429,1242,4742,4750,5720,5593,5172,4792,4307,2829,29968,1750,29967,29970,29966,29968,29981,29961,29982,29973,29970,29974,29974,29972,29976,29977,29981,29981,29984,29985,29986,29987,29990,29991]} 1. d4 {[%emt 0:00:00]} Nf6 {[%emt 0:00:00]} 2. c4 {[%emt 0:00:02]} e6 {[%emt 0:00:01]} 3. Nc3 {[%emt 0:00:01]} Bb4 {[%emt 0:00:02]} 4. e3 {[%emt 0:00:01]} O-O {[%emt 0:00:03]} 5. Nge2 {[%emt 0:00:03]} Re8 {[%emt 0:00:03]} 6. a3 {[%emt 0:00:14]} Bf8 {[%emt 0:00:02]} 7. Ng3 {[%emt 0:00:04]} d5 {[%emt 0:00:15] CPLX 2.0} 8. Be2 {[%emt 0:00:01] BESTDEEP. E46: Nimzo-Indian: Rubinstein: 4 e3 0-0 5 Ne2 without early Bd3.} b6 {[%emt 0:00:58] BESTDEEP} 9. cxd5 {[%emt 0:00:31] CPLX 2.2} exd5 {[%emt 0:00:05] RECAPT} 10. b4 {[%emt 0:00:20] BESTDEEP. The position is equal.} c6 {[%emt 0:00:35] BESTDEEP} 11. O-O {[%emt 0:00:07] CPLX 2.1} Be6 {[%emt 0:01:23] [#] CPLX 2.1 4 (Bc8-a6) (=1)} 12. Bd2 $146 {[%emt 0:03:11]} ({Predecessor:} 12. Bb2 Nbd7 13. Rc1 b5 14. Nb1 Nb6 15. Nd2 Nc4 16. Nxc4 bxc4 17. Bc3 g6 18. Re1 {0-1 (52) Pranav,A (2106)-Raja,R (2326) Mumbai 2018}) 12... a5 {[%emt 0:00:49] CPLX 2.1 12 (Bf8-d6) (=3)} 13. b5 {[%emt 0:01:54] CPLX 2.3} c5 {[%emt 0:00:03] BESTDEEP} 14. Bd3 {[%emt 0:00:01] CPLX 2.2 40 (Bd2-c1) (=6)} Nbd7 {[%emt 0:00:17] CPLX 2.5 18 (Bf8-d6) (=4)} 15. f4 {[%emt 0:00:17] CPLX 2.5 3 (h2-h3) (=5)} Bg4 {[%emt 0:01:47] CPLX 2.6} 16. Qb1 {[%emt 0:00:03] BESTDEEP} Bd6 {[%emt 0:01:27] CPLX 2.7 0 (Nd7-b8) (=3)} 17. h3 {[%emt 0:02:29] CPLX 2.7} Be6 {[%emt 0:00:04] BESTDEEP} 18. Nge2 {[%emt 0:00:02] CPLX 2.7 49 (Qb1-d1) (=8)} (18. Qd1 $11) 18... Nf8 $15 {[%emt 0:00:45] BESTDEEP} 19. g4 {[%emt 0:00:01] CPLX 2.6 42 (Qb1-a2) (=11)} h6 {[%emt 0:02:43] CPLX 2.7 16 (Be6-c8) (=4)} 20. Rf2 {[%emt 0:01:18] CPLX 2.7 9 (Qb1-e1) (=11)} Rc8 {[%emt 0:02:31] BESTDEEP} 21. Rg2 {[%emt 0:00:03] CPLX 2.7 35 (Qb1-b2) (=13)} cxd4 {[%emt 0:01:17] BESTDEEP} 22. Nxd4 {[%emt 0:01:19] RECAPT} Bc5 {[%emt 0:00:28] CPLX 2.9 38 (Be6-d7) (=6)} 23. Qb2 {[%emt 0:02:50] CPLX 2.8 44 (Nc3-e2) (=14)} Bxd4 {[%emt 0:00:44] RELBLUND 85 (Nf8-g6) (=10)} (23... Ng6 $1 $17 {[%cal Rg6f4] Threatens to win with ...Nxf4!} 24. Na4 Nh4) 24. exd4 $11 {[%emt 0:00:02] RECAPT} Ne4 {[%emt 0:00:00] BESTDEEP} 25. f5 {[%emt 0:01:10] BESTDEEP} ({Of course not} 25. Nxe4 dxe4 26. Bxe4 Bxg4 $1 $17) 25... Bd7 {[%emt 0:00:20] CPLX 3.1 0 (Ne4xc3) (=9)} 26. Re1 {[%emt 0:00:50] RELBLUND 78 (Bd3xe4) (=16)} (26. Bxe4 $11 {keeps the balance.} dxe4 27. Re1) 26... Nxc3 $17 {[%emt 0:00:12] BESTDEEP} 27. Bxc3 {[%emt 0:00:06] RECAPT} Qh4 $1 {[%emt 0:00:17][%csl LRe1,LRh3] CPLX 2.5} 28. Rxe8 {[%emt 0:02:32] EASY} Rxe8 {[%emt 0:00:03] RECAPT} 29. Qf2 {[%emt 0:00:09] Prevents Re3. BESTDEEP} Qxh3 {[%emt 0:00:16] EASY} 30. Rg3 {[%emt 0:00:01] EASY} Qh4 {[%emt 0:00:03] EASY} 31. Qh2 {[%emt 0:00:01] CPLX 3.0 109 (Bc3-d2) (=17)} (31. Bd2 $17) 31... Qf6 {[%emt 0:01:24] CPLX 3.1 23 (Qh4-e7) (=8)} 32. Qg2 {[%emt 0:00:02] CPLX 2.5 0 (Qh2-f2) (=16)} Rc8 {[%emt 0:01:18] CPLX 2.3} 33. Bb2 {[%emt 0:00:08] CPLX 2.5 6 (Bc3-d2) (=16)} Qd6 {[%emt 0:00:07] CPLX 2.3 42 (Qf6-h4) (=9)} 34. g5 {[%emt 0:00:17] CPLX 2.6 48 (Rg3-f3) (=17)} (34. Rf3 $17) 34... hxg5 $19 {[%emt 0:00:01] CPLX 2.6} 35. Rxg5 {[%emt 0:00:02] RECAPT} Qf6 {[%emt 0:00:01] CPLX 3.2 187 (Qd6-h6) (=15)} (35... Qh6 $1 $19 36. f6 g6 37. Qxd5 Re8) 36. Rh5 {[%emt 0:00:00] MISS-Rg5-g3 33 (Rg5-g3) (=17)} Re8 {[%emt 0:00:32] And now ...Re3 would win. BESTDEEP} 37. Qg3 {[%emt 0:00:35] Prevents Re3. BESTDEEP} ({Reject} 37. Qxd5 Re3 38. Bf1 Rg3+ 39. Kf2 Rg5 40. Rxg5 Qxg5 $17) 37... g6 {[%emt 0:00:10] MISS-Qf6-e7 40 (Qf6-e7) (=15)} (37... Qe7 $5 {[%cal Re7e3]} 38. Qe5 Nh7 $11) 38. fxg6 {[%emt 0:00:06] CPLX 3.4 0 (a3-a4) (=16)} Nxg6 {[%emt 0:00:02] Strongly threatening ...Qf4. RECAPT} 39. Rxd5 {[%emt 0:00:05] CPLX 4.7} Be6 {[%emt 0:00:14] MISS-Qf6-f4 27 (Qf6-f4) (=15)} 40. Rg5 {[%emt 0:00:24][%cal Rd3g6] CPLX 4.0} Kg7 {[%emt 0:00:11] CPLX 3.9 5 (Kg8-f8) (=15)} 41. Bc3 {[%emt 0:00:11] CPLX 4.3 27 (a3-a4) (=15)} (41. a4 $5 {[%cal Rg5e5]}) 41... Rc8 $1 {[%emt 0:00:05] DEEPSTRONG} 42. Bb2 {[%emt 0:00:05] CPLX 4.6 2 (Bd3xg6) (=15)} Rd8 {[%emt 0:00:19] CPLX 4.4 14 (Rc8-e8) (=14)} 43. a4 {[%emt 0:00:24] CPLX 4.4 14 (Bd3-e4) (=15)} Rd5 {[%emt 0:00:07] BESTDEEP} 44. Re5 {[%emt 0:00:12] CPLX 4.4 0 (Rg5xd5) (=15)} Rxe5 {[%emt 0:00:15] BESTDEEP} 45. dxe5 {[%emt 0:00:01] RECAPT} Qe7 {[%emt 0:00:00] BESTDEEP} 46. Bd4 {[%emt 0:00:08] CPLX 3.5} Qb4 {[%emt 0:00:04] BESTDEEP} 47. Bxb6 {[%emt 0:00:15] CPLX 4.1 0 (Qg3-f2) (=13)} Qxa4 {[%emt 0:00:06] EASY} 48. Kf2 {[%emt 0:00:08] CPLX 4.4} Qa2+ {[%emt 0:00:06] BESTDEEP} 49. Ke3 {[%emt 0:00:01] CPLX 4.6 0 (Kf2-e1) (=13)} a4 {[%emt 0:00:09] MISS-Be6-c4 0 (Be6-c4) (=12)} 50. Bd8 {[%emt 0:00:13] This bishop pair is nice. CPLX 4.0 0 (Bb6-d4) (=13)} Qb3 {[%emt 0:00:07] BESTDEEP} 51. Bf6+ {[%emt 0:00:02] BESTDEEP} Kf8 {[%emt 0:00:18] CPLX 3.8 0 (Kg7-g8) (=11)} 52. Qf3 {[%emt 0:00:13] Inhibits Bf5. White threatens Qa8+ and mate. CPLX 4.1} Bd5 {[%emt 0:00:05] Against Qa8+. BESTDEEP} 53. Qg4 {[%emt 0:00:11][%cal Rg4c8] CPLX 5.1} Be6 {[%emt 0:00:11][%mdl 8192] Inhibits Qc8+. BEVAL 400 (Qb3-c3) (=19)} (53... Qc3 $11) 54. Qd4 $18 {[%emt 0:00:06][%cal Rd4d8] BEVAL} Qd5 {[%emt 0:00:31] EVAL} 55. Qb6 {[%emt 0:00:21] MISS-Qd4-a7 334 (Qd4-a7) (=18)} Qd7 {[%emt 0:00:12] EVAL 327 (Ng6-e7) (=25)} (55... Ne7 $142 56. Qc7 Qd7) 56. Qb8+ $2 {[%emt 0:00:09] CPLX 5.5 400 (Qb6-d6) (=26)} (56. Qd6+ Kg8 57. b6) 56... Qc8 {[%emt 0:00:02] [#] EASY} 57. Qd6+ {[%emt 0:00:06] CPLX 5.9 122 (Qb8xc8) (=28)} (57. Qxc8+ $1 $18 Bxc8 58. Kd4) 57... Kg8 $16 {[%emt 0:00:01] [#] EASY} 58. b6 $2 {[%emt 0:00:02] RELBLUND 174 (Ke3-d2) (=31)} (58. Kd2 $1 $18 {Bxg6 is the strong threat.} a3 59. Qxa3) 58... Qc1+ $11 {[%emt 0:00:15] EASY} 59. Kd4 $1 $132 {[%emt 0:00:09][%mdl 2048] White is not keeping still. EASY} Qg1+ {[%emt 0:00:10] CPLX 6.0 6 (Ng6-f8) (=23)} 60. Kc3 {[%emt 0:00:05] Dancing on a razor blade. EASY} Qe1+ {[%emt 0:00:02] CPLX 5.8} 61. Kb2 {[%emt 0:00:27]} Qf2+ {[%emt 0:00:20]} 62. Ka3 {[%emt 0:00:15] Hoping for Bxg6.} Qa2+ {[%emt 0:00:06]} (62... Nf8 $1 $11) 63. Kb4 $14 {[%emt 0:00:02]} Qb3+ {[%emt 0:00:10]} 64. Ka5 {[%emt 0:00:06] Black must now prevent Bxg6.} Qc3+ $2 {[%emt 0:00:23][%mdl 8192]} (64... Nf8 $16) 65. Ka6 $18 {[%emt 0:00:06] Bxg6 would kill now.} Nf8 {[%emt 0:00:11]} 66. b7 {[%emt 0:00:06]} Bc8 {[%emt 0:00:01]} 67. bxc8=Q {[%emt 0:00:14]} Qxc8+ {[%emt 0:00:00]} 68. Kb5 {[%emt 0:00:07]} a3 {[%emt 0:00:13]} 69. Qxa3 {[%emt 0:00:08] Threatening mate with Qa7.} Ne6 {[%emt 0:00:18]} 70. Qd6 {[%emt 0:00:08]} (70. Qa7 $142 Nc7+ 71. Ka5 Ne8 72. Qg1+ Kf8 73. Qd4 Qa8+ 74. Kb4 Qc8 75. Bb5 Nxf6 76. exf6) 70... Qa8 {[%emt 0:00:18]} 71. Bc4 {[%emt 0:00:14] White mates.} Qb7+ {[%emt 0:00:06]} 72. Ka5 {[%emt 0:00:04]} Qa8+ {[%emt 0:00:10]} 73. Kb4 {[%emt 0:00:05]} Nf4 {[%emt 0:00:04]} 74. Qd8+ {[%emt 0:00:18]} Qxd8 {[%emt 0:00:02]} 75. Bxd8 {[%emt 0:00:01]} Kg7 {[%emt 0:00:18]} 76. Kc5 {[%emt 0:00:05]} Kg6 {[%emt 0:00:06]} 77. Kd6 {[%emt 0:00:01]} Kg7 {[%emt 0:00:09]} 78. Bf6+ {[%emt 0:00:11]} Kf8 {[%emt 0:00:12]} 79. Bg5 {[%emt 0:00:04]} Ng6 {[%emt 0:00:06]} 80. Bd3 {[%emt 0:00:03]} Nh8 {[%emt 0:00:09]} 81. Bf6 {[%emt 0:00:03] A wild game.  Weighted Error Value: White=0.42/Black=0.14 (very precise)} 1-0

[Event "Julius Baer Generation Cup Prelims 2022"]
[Site "Online"]
[Date "2022.09.14"]
[Round "8.7"]
[White "Duda, Jan-Krzysztof"]
[Black "Wojtaszek, Radoslaw"]
[Result "0-1"]
[ECO "A08"]
[WhiteElo "2731"]
[BlackElo "2696"]
[Annotator "TA"]
[PlyCount "134"]
[EventDate "2022.09.12"]
[EventType "tourn"]
[EventCountry "NET"]
[SourceTitle "playchess.com"]
[Source "ChessBase"]
[SourceQuality "1"]
[TimeControl "900+10"]

{[%evp 15,134,-19,0,-39,-35,-42,-20,-30,-17,-31,-20,-59,-51,-52,-36,-25,-33,-64,0,-339,-360,-392,-403,-506,-491,-504,-504,-493,-520,-507,-453,-427,-371,-464,-461,-490,-453,-414,-393,-406,-405,-546,-435,-481,-471,-485,-475,-616,-629,-604,-608,-650,-641,-644,-627,-641,-640,-633,-613,-626,-595,-803,-804,-775,-764,-739,-675,-668,-602,-593,-552,-670,-564,-662,-654,-696,-618,-796,-796,-775,-722,-1539,-1497,-2478,-2212,-1707,-1506,-1506,-1453,-29982,-29970,-29964,-29967,-29977,-29978,-29978,-29979,-29979,-29978,-29977,-29979,-29978,-29968,-29964,-29964,-29962,-29962,-29960,-29952,-29984,-29982,-29983,-29984,-29983,-2329,-29983,-29984,-29988,-29985,-29987,-29988]} 1. d3 {[%emt 0:00:00]} d5 {[%emt 0:00:00]} 2. Nf3 {[%emt 0:00:04]} Nf6 {[%emt 0:00:06]} 3. Nbd2 {[%emt 0:00:08]} c5 {[%emt 0:00:04]} 4. e4 {[%emt 0:00:07]} Nc6 {[%emt 0:00:02]} 5. g3 {[%emt 0:00:07]} e5 {[%emt 0:00:04]} 6. Bg2 {[%emt 0:00:02]} Be7 {[%emt 0:00:10]} 7. O-O {[%emt 0:00:34]} O-O $1 {[%emt 0:00:03] 7...0-0 scores better than 7...d4.} 8. exd5 {[%emt 0:00:04]} Nxd5 {[%emt 0:00:02]} ({Don't take} 8... Qxd5 9. Re1 Bg4 10. h3 Bxf3 11. Nxf3 $16) 9. Nc4 {[%emt 0:00:02] A08: King's Indian Attack.} f6 $1 {[%emt 0:00:11]} 10. c3 {[%emt 0:00:08]} Kh8 {[%emt 0:00:20]} 11. a4 {[%emt 0:00:04] [#] The position is equal.} Be6 $146 {[%emt 0:00:13]} ({Predecessor:} 11... Rb8 12. Re1 Bg4 13. h3 Bh5 14. Qe2 Nc7 15. Be3 Ne6 16. Rad1 Qc7 17. g4 Bf7 {½-½ (57) Todorcevic,M (2550)-Davies,N (2475) Lyon 1990}) 12. a5 {[%emt 0:00:06]} Qd7 {[%emt 0:00:14]} 13. Qa4 {[%emt 0:00:02]} Rab8 {[%emt 0:00:13]} (13... Nc7 $5 {[%cal Rb7b5]} 14. Qb3 b5 15. axb6 axb6 16. Rxa8 Rxa8 $15) 14. Nfd2 {[%emt 0:00:42]} b5 {[%emt 0:02:18]} 15. axb6 $1 {[%emt 0:00:04]} axb6 {[%emt 0:00:01] Strongly threatening ...b5.} 16. Qb5 {[%emt 0:00:26]} Qc7 {[%emt 0:00:18]} ({Black should try} 16... Bd8 $15) 17. Ra6 $2 {[%emt 0:01:17][%mdl 8192] [#] Black keeps a firm grip on the game.} (17. Re1 $11 {and White has nothing to worry.}) 17... Ncb4 $1 $19 {[%emt 0:00:47][%mdl 512] White must now prevent ...Bd7.} 18. cxb4 {[%emt 0:04:20]} (18. Na3 Nxa6) 18... Bd7 {[%emt 0:00:10]} 19. Na3 {[%emt 0:00:01]} Bxb5 {[%emt 0:00:34]} 20. Nxb5 {[%emt 0:00:00]} Qd7 {[%emt 0:01:53]} 21. Ra7 {[%emt 0:00:10]} Qxb5 {[%emt 0:00:07]} 22. Bxd5 {[%emt 0:00:01]} Qxd3 {[%emt 0:02:37]} 23. Be4 {[%emt 0:00:23]} Qd6 {[%emt 0:00:33]} 24. b5 {[%emt 0:00:10]} Qe6 {[%emt 0:00:38] Against Bf5} 25. Bc6 {[%emt 0:00:29]} f5 {[%emt 0:00:11][%cal Bf6f5,Bf5f4][%mdl 32]} 26. Bd7 {[%emt 0:00:21]} Qf6 {[%emt 0:00:38]} 27. Nc4 {[%emt 0:00:16]} f4 {[%emt 0:00:16]} 28. Rc7 {[%emt 0:00:10]} Bd8 {[%emt 0:02:06]} 29. Rc6 {[%emt 0:00:13]} Qe7 {[%emt 0:00:13]} 30. Bh3 {[%emt 0:00:57]} Bc7 {[%emt 0:00:21]} 31. Re1 {[%emt 0:01:46]} fxg3 {[%emt 0:01:07]} 32. hxg3 {[%emt 0:00:01]} Qf7 {[%emt 0:00:02][%csl LRc4,LRf2]} 33. Be3 {[%emt 0:00:12]} Qxc4 {[%emt 0:00:02]} 34. Rxc7 {[%emt 0:00:00]} Qxb5 {[%emt 0:00:02]} 35. Rb1 {[%emt 0:01:06]} Rf3 {[%emt 0:00:20]} 36. Rd1 {[%emt 0:00:40] [#]} Rxe3 $1 {[%emt 0:00:15]} 37. fxe3 {[%emt 0:00:00]} Qe2 {[%emt 0:00:09]} 38. Rdd7 {[%emt 0:00:09]} Qxe3+ {[%emt 0:00:18]} 39. Kg2 {[%emt 0:00:01]} Qe4+ {[%emt 0:00:32]} 40. Kh2 {[%emt 0:00:09]} Qg6 {[%emt 0:00:11]} 41. Rf7 {[%emt 0:00:05]} Rd8 {[%emt 0:00:29] ...Rd2+ is the strong threat.} 42. Rcd7 {[%emt 0:00:05][%cal Rd7d8] Inhibits Rd2+.} Rg8 {[%emt 0:00:17]} 43. Bf5 {[%emt 0:00:13]} Qg5 {[%emt 0:00:16]} 44. Kg2 {[%emt 0:00:34]} h5 {[%emt 0:00:06] Threatens to win with ...h4.} 45. Kh3 {[%emt 0:00:41]} c4 {[%emt 0:00:09]} 46. Rde7 {[%emt 0:01:33]} Qc1 {[%emt 0:00:32][%cal Rc1h1]} 47. Be4 {[%emt 0:00:03] Against Qh1+} Qxb2 {[%emt 0:01:09] aiming for ...Qe2.} 48. Rf5 {[%emt 0:02:19]} Qe2 {[%emt 0:00:04]} 49. Rexe5 {[%emt 0:00:23]} g5 {[%emt 0:00:26] ( -> ...g4+)} 50. Bg2 {[%emt 0:00:40]} Qg4+ {[%emt 0:00:03]} 51. Kh2 {[%emt 0:00:00]} h4 {[%emt 0:00:07]} 52. gxh4 {[%emt 0:00:00]} Qxh4+ {[%emt 0:00:02]} ({Weaker is} 52... gxh4 53. Rh5+ Kg7 54. Rhg5+ Kh6 55. Rxg4 Rxg4 56. Rb5 $11) 53. Kg1 {[%emt 0:00:00]} c3 {[%emt 0:00:13]} 54. Be4 {[%emt 0:00:20]} Qg3+ {[%emt 0:00:17]} 55. Kf1 {[%emt 0:00:17]} Rd8 {[%emt 0:00:12]} 56. Bc2 {[%emt 0:00:16]} Qh3+ {[%emt 0:00:24]} 57. Kg1 {[%emt 0:00:08]} Qg4+ {[%emt 0:00:05]} (57... Rd2 $2 58. Re8+ Kg7 59. Re7+ Kg6 60. Rf3+ Rxc2 61. Rxh3 $18) 58. Kf1 {[%emt 0:00:16]} Qc4+ {[%emt 0:00:10]} 59. Kg1 {[%emt 0:00:24]} Qd4+ {[%emt 0:00:05]} 60. Kg2 {[%emt 0:00:08]} Qh4 {[%emt 0:00:47]} 61. Rf2 {[%emt 0:00:48]} g4 {[%emt 0:00:36][%cal Bg5g4,Bg4g3][%mdl 32]} 62. Ref5 {[%emt 0:00:30]} Qh3+ {[%emt 0:00:16]} 63. Kg1 {[%emt 0:00:02]} g3 {[%emt 0:00:02]} 64. Re2 {[%emt 0:00:21] [#]} Qh4 {[%emt 0:00:31]} (64... Rd1+ $142 $3 {[%mdl 512]} 65. Bxd1 Qxf5 66. Ba4 b5 67. Bc2 Qf3 68. Bd1 Qd3 69. Re8+ Kg7 70. Bf3 Qd4+ 71. Kg2 Qf2+ 72. Kh3 Qxf3 73. Re7+ Kf6 74. Re1 g2+ 75. Kh2 Qf2 76. Rg1 c2 77. Kh3 Qxg1 78. Kg3 c1=Q 79. Kg4 Qg5+ 80. Kh3 Qh1#) 65. Rfe5 {[%emt 0:00:10]} Rf8 {[%emt 0:00:05] Black mates.} 66. Be4 {[%emt 0:00:10]} Rf2 {[%emt 0:00:11][%csl Gf2,Gg3][%cal Rh4h2]} 67. Re8+ {[%emt 0:00:22]} Kg7 {[%emt 0:00:01] Weighted Error Value: White=0.58/Black=0.12 (very precise)} 0-1

[Event "Julius Baer Generation Cup Prelims 2022"]
[Site "Online"]
[Date "2022.09.14"]
[Round "8.8"]
[White "Gelfand, Boris"]
[Black "Yoo, Christopher Woojin"]
[Result "1-0"]
[ECO "D11"]
[WhiteElo "2668"]
[BlackElo "2563"]
[Annotator "TA"]
[PlyCount "93"]
[EventDate "2022.09.12"]
[EventType "tourn"]
[EventCountry "NET"]
[SourceTitle "playchess.com"]
[Source "ChessBase"]
[SourceQuality "1"]
[TimeControl "900+10"]

{[%evp 10,93,16,16,16,0,79,62,123,125,129,128,323,317,316,314,320,322,323,323,348,344,345,348,368,339,379,368,375,368,368,377,414,397,476,482,482,475,448,438,426,401,397,424,466,418,442,429,423,407,556,553,622,616,781,612,767,765,1274,1307,1721,1719,2319,2241,1879,1597,7753,6731,29978,29979,29979,29978,29981,29982,29982,29973,29972,29973,29973,29974,29974,29974,29974,29975,29973,6839]} 1. d4 {[%emt 0:00:00]} d5 {[%emt 0:00:00]} 2. c4 {[%emt 0:00:04]} c6 {[%emt 0:00:48]} 3. Nf3 {[%emt 0:00:02]} Nf6 {[%emt 0:00:02]} 4. e3 {[%emt 0:00:01]} Bg4 {[%emt 0:00:16]} 5. Qb3 {[%emt 0:00:05]} Qb6 {[%emt 0:00:21]} 6. Ne5 {[%emt 0:00:01] BESTDEEP} Bf5 {[%emt 0:00:07] BESTDEEP. D11: Slav Defence: 3 Nf3 sidelines and 3...Nf6 4 e3 Bg4.} 7. cxd5 $1 {[%emt 0:00:03][%mdl 4] CPLX 3.0 16 (Bf1-d3) (=8) is more profitable than 7.Nc3 at the moment.} cxd5 {[%emt 0:00:50] RELBLUND 79 (Qb6xb3) (=40)} (7... Qxb3 $11 {remains equal.} 8. axb3 Nxd5) 8. Nc3 {[%emt 0:00:49] CPLX 3.1 17 (Qb3xb6) (=11)} e6 {[%emt 0:00:54] CPLX 3.4 61 (Qb6xb3) (=47)} (8... Qxb3 $14 9. axb3 Nc6) 9. Qxb6 $16 {[%emt 0:03:05] White is more active. CPLX 3.4} axb6 {[%emt 0:00:00] RECAPT} 10. Bb5+ {[%emt 0:00:07] CPLX 2.3} Nbd7 $2 {[%emt 0:02:55] CPLX 2.4 195 (Nf6-d7) (=67)} (10... Nfd7 $16 {keeps fighting.}) 11. g4 $18 {[%emt 0:01:13] BESTDEEP} Bxg4 {[%emt 0:02:25] BESTDEEP} 12. Bxd7+ {[%emt 0:00:06][%mdl 64] [#] Deflection. EASY} Nxd7 {[%emt 0:00:01] RECAPT} 13. Nxg4 {[%emt 0:00:01][%cal Be5g4,Bg4f2,Bf2e4,Be4d6][%mdl 32] EASY} f6 {[%emt 0:00:49] CPLX 2.3 1 (h7-h5) (=42)} 14. f3 {[%emt 0:00:26] [#] CPLX 2.3} h5 $146 {[%emt 0:01:58] CPLX 2.3 25 (Ke8-f7) (=40)} ({Predecessor:} 14... Bb4 15. Bd2 Kf7 16. Nb5 Be7 17. Ke2 Rhc8 18. a3 e5 19. Rhc1 h5 20. Nf2 exd4 21. exd4 {1-0 (39) Koneru,C (2193)-Parveen,S (2140) Calicut 2003}) 15. Nf2 {[%emt 0:00:03] EASY} Kf7 {[%emt 0:00:05] CPLX 2.2 1 (Bf8-e7) (=36)} 16. Bd2 {[%emt 0:00:48] CPLX 2.3} g5 {[%emt 0:00:46] CPLX 2.3 20 (Bf8-e7) (=35)} 17. Ke2 {[%emt 0:01:16] BESTDEEP} Rg8 {[%emt 0:01:11] CPLX 2.4 40 (Nd7-b8) (=35)} 18. e4 {[%emt 0:01:30] CPLX 2.4} dxe4 {[%emt 0:00:09] CPLX 2.8 7 (Bf8-b4) (=33)} 19. Nfxe4 {[%emt 0:00:01] RECAPT} Be7 {[%emt 0:00:15] CPLX 3.1 0 (Ra8-d8) (=31)} 20. Nb5 {[%emt 0:00:17] CPLX 3.1} f5 {[%emt 0:01:03] CPLX 3.2 37 (Nd7-b8) (=31)} 21. Ned6+ {[%emt 0:00:03] CPLX 3.5} Kg6 {[%emt 0:00:02] CPLX 3.3 79 (Be7xd6) (=34)} 22. Rhg1 {[%emt 0:01:15] CPLX 3.4} g4 {[%emt 0:00:19] CPLX 4.4} 23. h3 {[%emt 0:00:02] CPLX 4.7} Nf6 {[%emt 0:00:02] CPLX 4.9 0 (Kg6-h7) (=30)} 24. Nc4 {[%emt 0:00:36] CPLX 5.1 10 (Ke2-d3) (=2)} Kh7 {[%emt 0:00:38] CPLX 4.8} 25. hxg4 {[%emt 0:00:01] CPLX 3.6 25 (f3xg4) (=3)} fxg4 {[%emt 0:00:02] RECAPT} 26. fxg4 {[%emt 0:00:03] CPLX 3.3 0 (Rg1-e1) (=3)} Nxg4 {[%emt 0:00:00] CPLX 3.3 42 (Rg8xg4) (=28)} 27. a3 {[%emt 0:00:42] CPLX 3.4 48 (Rg1-h1) (=5)} Raf8 {[%emt 0:00:16] CPLX 3.3 24 (Ra8-c8) (=28)} 28. Raf1 {[%emt 0:00:11] Inhibits Rf2+. CPLX 4.5} Rxf1 {[%emt 0:01:03] CPLX 3.8} 29. Rxf1 {[%emt 0:00:03] RECAPT} (29. Kxf1 $2 {perishes.} Nh2+ 30. Kf2 Bh4+ 31. Ke2 Rxg1 $19) 29... Kg6 {[%emt 0:00:00] CPLX 2.4 149 (Ng4-h6) (=32)} 30. Ne5+ {[%emt 0:01:26] BESTDEEP} Nxe5 {[%emt 0:00:04] CPLX 2.8 69 (Kg6-h7) (=33)} 31. dxe5 {[%emt 0:00:01] RECAPT} Rc8 {[%emt 0:01:22] EVAL 165 (Be7-h4) (=38)} 32. Rg1+ {[%emt 0:00:40] CPLX 2.3 169 (Nb5-d6) (=11)} Kh7 {[%emt 0:00:03] EVAL 155 (Kg6-f7) (=43)} 33. Nd6 {[%emt 0:00:20] EVAL} Rf8 {[%emt 0:00:38] BEVAL 400 (Rc8-b8) (=55)} 34. Rf1 {[%emt 0:00:54] BEVAL} Rxf1 {[%emt 0:00:09] BEVAL 400 (Kh7-g8) (=67)} 35. Kxf1 {[%emt 0:00:02] [#] Be3 is the strong threat. BEVAL} Kg6 {[%emt 0:00:00] BEVAL 400 (Be7-f8) (=78)} 36. Be3 {[%emt 0:00:24] BEVAL} b5 {[%emt 0:00:15] BEVAL} 37. Kg2 {[%emt 0:00:21]} h4 {[%emt 0:00:14]} 38. Kh3 {[%emt 0:00:14]} b4 {[%emt 0:01:17]} 39. axb4 {[%emt 0:00:08] White mates.} b5 {[%emt 0:00:03]} 40. Kg4 {[%emt 0:00:03]} Bd8 {[%emt 0:00:10]} 41. Nxb5 {[%emt 0:00:04]} h3 {[%emt 0:00:01]} 42. Bf4 {[%emt 0:00:22]} Bg5 {[%emt 0:00:05]} 43. Bh2 {[%emt 0:00:02]} ({But not} 43. Bxg5 $2 h2 44. Nd4 h1=Q $19) 43... Bc1 {[%emt 0:00:04]} 44. Nd4 {[%emt 0:00:20]} Kf7 {[%emt 0:00:02]} 45. b3 {[%emt 0:00:10]} Bb2 {[%emt 0:00:07]} 46. Nc2 {[%emt 0:00:18]} Ke7 {[%emt 0:00:42]} 47. Ne3 {[%emt 0:00:05] Black got outplayed after the opening.  Weighted Error Value: White=0.11 (very precise) /Black=0.36} (47. b5 $142 Kd7 48. Kxh3 Ke7 49. Ne3 Bd4 50. Nc4 Bf2 51. Kg4 Be1 52. Bf4) 1-0